[Event "Titled Tuesday Blitz February 01 A 2022"]
[White "Paravyan, David"]
[Black "Nakamura, Hikaru"]
[WhiteFideId "4194985"]
[BlackFideId "2016192"]
[WhiteElo "2569"]
[BlackElo "2850"]
[Result "1/2-1/2"]
[Round "09"]
[TimeControl "180+1"]
[Date "2022.02.01"]
[WhiteClock "0:00:37"]
[BlackClock "0:01:03"]

1. e4 {[%clk 0:03:00]}  e5 {[%clk 0:03:00]} 2. Nf3 {[%clk 0:03:01]}  Nc6 {[%clk 0:03:00]} 3. Nc3 {[%clk 0:03:02]}  Nf6 {[%clk 0:02:56]} 4. d4 {[%clk 0:03:02]}  exd4 {[%clk 0:02:57]} 5. Nxd4 {[%clk 0:03:03]}  Bb4 {[%clk 0:02:57]} 6. Nxc6 {[%clk 0:03:03]}  bxc6 {[%clk 0:02:57]} 7. Bd3 {[%clk 0:03:04]}  O-O {[%clk 0:02:57]} 8. O-O {[%clk 0:03:04]}  d5 {[%clk 0:02:58]} 9. exd5 {[%clk 0:03:05]}  Bg4 {[%clk 0:02:57]} 10. f3 {[%clk 0:03:05]}  Bh5 {[%clk 0:02:57]} 11. dxc6 {[%clk 0:03:05]}  Qd4+ {[%clk 0:02:57]} 12. Kh1 {[%clk 0:03:05]}  Bxc3 {[%clk 0:02:57]} 13. bxc3 {[%clk 0:03:06]}  Qxc3 {[%clk 0:02:58]} 14. Bf4 {[%clk 0:03:07]}  Qxc6 {[%clk 0:02:54]} 15. Qe2 {[%clk 0:03:07]}  Bg6 {[%clk 0:02:46]} 16. Bb5 {[%clk 0:03:05]}  Qc5 {[%clk 0:02:30]} 17. Qe5 {[%clk 0:03:05]}  Qxc2 {[%clk 0:01:48]} 18. Rfc1 {[%clk 0:02:59]}  Qf5 {[%clk 0:01:47]} 19. Qxf5 {[%clk 0:02:57]}  Bxf5 {[%clk 0:01:48]} 20. Bxc7 {[%clk 0:02:57]}  Rac8 {[%clk 0:01:44]} 21. Ba6 {[%clk 0:02:55]}  Ra8 {[%clk 0:01:26]} 22. Bb7 {[%clk 0:02:54]}  Be6 {[%clk 0:01:26]} 23. a4 {[%clk 0:02:52]}  a6 {[%clk 0:01:23]} 24. Bxa8 {[%clk 0:02:50]}  Rxa8 {[%clk 0:01:24]} 25. Rab1 {[%clk 0:02:51]}  Nd7 {[%clk 0:01:24]} 26. Bd6 {[%clk 0:02:47]}  h5 {[%clk 0:01:23]} 27. Kg1 {[%clk 0:02:44]}  Kh7 {[%clk 0:01:22]} 28. Kf2 {[%clk 0:02:44]}  g5 {[%clk 0:01:19]} 29. Rc6 {[%clk 0:02:43]}  h4 {[%clk 0:01:10]} 30. Be7 {[%clk 0:02:39]}  Kg6 {[%clk 0:01:07]} 31. Rd1 {[%clk 0:02:31]}  Ra7 {[%clk 0:01:05]} 32. Rd5 {[%clk 0:01:38]}  Nf6 {[%clk 0:01:05]} 33. Bc5 {[%clk 0:00:36]}  Bxd5 {[%clk 0:01:01]} 34. Rxf6+ {[%clk 0:00:35]}  Kxf6 {[%clk 0:01:02]} 35. Bxa7 {[%clk 0:00:35]}  a5 {[%clk 0:01:02]} 36. Bb6 {[%clk 0:00:35]}  Bc6 {[%clk 0:01:02]} 37. Bxa5 {[%clk 0:00:36]}  Bxa4 {[%clk 0:01:03]} 38. h3 {[%clk 0:00:37]}  Kg6 {[%clk 0:01:03]} 1/2-1/2


[Site "https://www.chess.com"]

[Event "Titled Tuesday Blitz February 01 A 2022"]
[White "Pranav, V"]
[Black "Xiong, Jeffery"]
[WhiteFideId "25060783"]
[BlackFideId "2047640"]
[WhiteElo "2349"]
[BlackElo "2727"]
[Result "0-1"]
[Round "09"]
[TimeControl "180+1"]
[Date "2022.02.01"]
[WhiteClock "0:00:18"]
[BlackClock "0:01:01"]

1. Nf3 {[%clk 0:03:00]}  c5 {[%clk 0:02:57]} 2. g3 {[%clk 0:03:00]}  Nc6 {[%clk 0:02:56]} 3. Bg2 {[%clk 0:03:00]}  g6 {[%clk 0:02:57]} 4. O-O {[%clk 0:03:01]}  Bg7 {[%clk 0:02:58]} 5. c3 {[%clk 0:03:00]}  e5 {[%clk 0:02:58]} 6. e4 {[%clk 0:02:58]}  d6 {[%clk 0:02:57]} 7. d3 {[%clk 0:02:56]}  Nge7 {[%clk 0:02:57]} 8. a4 {[%clk 0:02:55]}  O-O {[%clk 0:02:57]} 9. Na3 {[%clk 0:02:54]}  Be6 {[%clk 0:02:55]} 10. Ng5 {[%clk 0:02:54]}  Bd7 {[%clk 0:02:55]} 11. Nc4 {[%clk 0:02:54]}  h6 {[%clk 0:02:55]} 12. Nf3 {[%clk 0:02:53]}  Be6 {[%clk 0:02:56]} 13. Re1 {[%clk 0:02:51]}  Qd7 {[%clk 0:02:53]} 14. b3 {[%clk 0:02:45]}  f5 {[%clk 0:02:53]} 15. Bb2 {[%clk 0:02:36]}  Rf7 {[%clk 0:02:41]} 16. exf5 {[%clk 0:02:10]}  Nxf5 {[%clk 0:02:42]} 17. d4 {[%clk 0:01:52]}  exd4 {[%clk 0:02:39]} 18. cxd4 {[%clk 0:01:53]}  Ncxd4 {[%clk 0:02:28]} 19. Nxd4 {[%clk 0:01:47]}  Nxd4 {[%clk 0:02:29]} 20. f4 {[%clk 0:01:36]}  Bg4 {[%clk 0:02:25]} 21. Qd3 {[%clk 0:01:29]}  Bf5 {[%clk 0:02:25]} 22. Qd1 {[%clk 0:01:25]}  Bc2 {[%clk 0:02:17]} 23. Qc1 {[%clk 0:01:20]}  Bxb3 {[%clk 0:02:09]} 24. Bd5 {[%clk 0:01:15]}  Kh7 {[%clk 0:02:05]} 25. Bxf7 {[%clk 0:01:06]}  Qxf7 {[%clk 0:02:05]} 26. Nd2 {[%clk 0:01:04]}  Bd5 {[%clk 0:02:03]} 27. Ra3 {[%clk 0:01:01]}  Re8 {[%clk 0:01:49]} 28. Rae3 {[%clk 0:00:58]}  Rxe3 {[%clk 0:01:48]} 29. Rxe3 {[%clk 0:00:59]}  Qd7 {[%clk 0:01:26]} 30. a5 {[%clk 0:00:52]}  Qh3 {[%clk 0:01:25]} 31. Qf1 {[%clk 0:00:34]}  Qxf1+ {[%clk 0:01:17]} 32. Kxf1 {[%clk 0:00:32]}  Nf5 {[%clk 0:01:18]} 33. Rd3 {[%clk 0:00:27]}  Bxb2 {[%clk 0:01:17]} 34. g4 {[%clk 0:00:22]}  c4 {[%clk 0:01:11]} 35. Rh3 {[%clk 0:00:21]}  Nd4 {[%clk 0:01:02]} 36. Nb1 {[%clk 0:00:19]}  Be4 {[%clk 0:01:01]} 37. Nc3 {[%clk 0:00:18]}  Bd3+ {[%clk 0:01:01]} 0-1


[Site "https://www.chess.com"]

[Event "Titled Tuesday Blitz February 01 A 2022"]
[White "Rustemov, Alexander"]
[Black "Demchenko, Anton"]
[WhiteFideId "4119002"]
[BlackFideId "4160258"]
[WhiteElo "2786"]
[BlackElo "2539"]
[Result "1-0"]
[Round "09"]
[TimeControl "180+1"]
[Date "2022.02.01"]
[WhiteClock "0:00:12"]
[BlackClock "0:00:08"]

1. d4 {[%clk 0:03:00]}  Nf6 {[%clk 0:02:59]} 2. c4 {[%clk 0:02:59]}  g6 {[%clk 0:03:00]} 3. Nf3 {[%clk 0:03:00]}  Bg7 {[%clk 0:03:00]} 4. g3 {[%clk 0:03:00]}  O-O {[%clk 0:03:01]} 5. Bg2 {[%clk 0:03:00]}  d6 {[%clk 0:03:02]} 6. Nc3 {[%clk 0:03:00]}  Nbd7 {[%clk 0:03:02]} 7. O-O {[%clk 0:03:00]}  e5 {[%clk 0:03:03]} 8. e4 {[%clk 0:03:00]}  exd4 {[%clk 0:03:02]} 9. Nxd4 {[%clk 0:03:01]}  Nc5 {[%clk 0:03:03]} 10. h3 {[%clk 0:03:00]}  a5 {[%clk 0:03:03]} 11. Re1 {[%clk 0:03:00]}  Re8 {[%clk 0:03:03]} 12. b3 {[%clk 0:02:52]}  h6 {[%clk 0:02:51]} 13. Rb1 {[%clk 0:02:46]}  Bd7 {[%clk 0:02:27]} 14. Kh2 {[%clk 0:02:44]}  h5 {[%clk 0:02:16]} 15. Bg5 {[%clk 0:02:34]}  Ng4+ {[%clk 0:02:10]} 16. hxg4 {[%clk 0:02:30]}  Qxg5 {[%clk 0:02:08]} 17. gxh5 {[%clk 0:02:28]}  Bg4 {[%clk 0:01:49]} 18. f3 {[%clk 0:02:01]}  Qxh5+ {[%clk 0:00:47]} 19. Kg1 {[%clk 0:02:01]}  Be6 {[%clk 0:00:42]} 20. Qd2 {[%clk 0:01:47]}  a4 {[%clk 0:00:39]} 21. b4 {[%clk 0:01:43]}  Nd7 {[%clk 0:00:38]} 22. Nxe6 {[%clk 0:01:39]}  fxe6 {[%clk 0:00:35]} 23. f4 {[%clk 0:01:26]}  Nf6 {[%clk 0:00:36]} 24. Nb5 {[%clk 0:01:12]}  Re7 {[%clk 0:00:33]} 25. Qe2 {[%clk 0:01:10]}  Qh6 {[%clk 0:00:24]} 26. e5 {[%clk 0:00:58]}  dxe5 {[%clk 0:00:24]} 27. fxe5 {[%clk 0:00:58]}  Nh5 {[%clk 0:00:24]} 28. Qg4 {[%clk 0:00:53]}  Rf8 {[%clk 0:00:20]} 29. Rbd1 {[%clk 0:00:48]}  Rf5 {[%clk 0:00:18]} 30. Nd4 {[%clk 0:00:35]}  Rg5 {[%clk 0:00:15]} 31. Qe4 {[%clk 0:00:27]}  Nxg3 {[%clk 0:00:14]} 32. Qxb7 {[%clk 0:00:26]}  Rh5 {[%clk 0:00:09]} 33. Nf3 {[%clk 0:00:18]}  Rf7 {[%clk 0:00:07]} 34. Kf2 {[%clk 0:00:17]}  Nf5 {[%clk 0:00:06]} 35. Qc8+ {[%clk 0:00:14]}  Kh7 {[%clk 0:00:06]} 36. Qxe6 {[%clk 0:00:15]}  Qf4 {[%clk 0:00:06]} 37. Qxf7 {[%clk 0:00:09]}  Rh2 {[%clk 0:00:06]} 38. Qxf5 {[%clk 0:00:03]}  gxf5 {[%clk 0:00:04]} 39. Rh1 {[%clk 0:00:03]}  Rxh1 {[%clk 0:00:04]} 40. Rxh1+ {[%clk 0:00:03]}  Kg8 {[%clk 0:00:04]} 41. Rh4 {[%clk 0:00:02]}  Qc1 {[%clk 0:00:04]} 42. Rd4 {[%clk 0:00:02]}  Qb2+ {[%clk 0:00:03]} 43. Rd2 {[%clk 0:00:03]}  Qxb4 {[%clk 0:00:04]} 44. e6 {[%clk 0:00:03]}  Qc5+ {[%clk 0:00:04]} 45. Kf1 {[%clk 0:00:02]}  Bf6 {[%clk 0:00:05]} 46. Re2 {[%clk 0:00:03]}  Qxc4 {[%clk 0:00:04]} 47. Bh3 {[%clk 0:00:03]}  Qc1+ {[%clk 0:00:03]} 48. Kf2 {[%clk 0:00:03]}  Qc5+ {[%clk 0:00:03]} 49. Kg2 {[%clk 0:00:03]}  Be7 {[%clk 0:00:03]} 50. Kf1 {[%clk 0:00:01]}  Qc1+ {[%clk 0:00:03]} 51. Kf2 {[%clk 0:00:01]}  Qc4 {[%clk 0:00:04]} 52. Kf1 {[%clk 0:00:01]}  Qd3 {[%clk 0:00:04]} 53. Kf2 {[%clk 0:00:02]}  Bc5+ {[%clk 0:00:04]} 54. Kf1 {[%clk 0:00:02]}  Qd1+ {[%clk 0:00:05]} 55. Ne1 {[%clk 0:00:03]}  Qd5 {[%clk 0:00:05]} 56. Bg2 {[%clk 0:00:02]}  Qd4 {[%clk 0:00:04]} 57. Nf3 {[%clk 0:00:03]}  Qa1+ {[%clk 0:00:04]} 58. Ne1 {[%clk 0:00:03]}  Qc3 {[%clk 0:00:04]} 59. e7 {[%clk 0:00:03]}  Bxe7 {[%clk 0:00:04]} 60. Rxe7 {[%clk 0:00:03]}  Qc4+ {[%clk 0:00:05]} 61. Re2 {[%clk 0:00:04]}  a3 {[%clk 0:00:04]} 62. Bf3 {[%clk 0:00:04]}  Kg7 {[%clk 0:00:04]} 63. Kf2 {[%clk 0:00:05]}  Qd4+ {[%clk 0:00:04]} 64. Kf1 {[%clk 0:00:05]}  c5 {[%clk 0:00:05]} 65. Rc2 {[%clk 0:00:04]}  c4 {[%clk 0:00:05]} 66. Be2 {[%clk 0:00:05]}  c3 {[%clk 0:00:04]} 67. Nf3 {[%clk 0:00:05]}  Qe3 {[%clk 0:00:04]} 68. Ke1 {[%clk 0:00:04]}  f4 {[%clk 0:00:04]} 69. Kf1 {[%clk 0:00:04]}  Kf6 {[%clk 0:00:03]} 70. Ke1 {[%clk 0:00:04]}  Qc5 {[%clk 0:00:03]} 71. Kf1 {[%clk 0:00:05]}  Kf5 {[%clk 0:00:02]} 72. Ke1 {[%clk 0:00:05]}  Ke4 {[%clk 0:00:02]} 73. Kf1 {[%clk 0:00:05]}  Qb4 {[%clk 0:00:02]} 74. Bd1 {[%clk 0:00:05]}  Qb1 {[%clk 0:00:02]} 75. Ke2 {[%clk 0:00:05]}  Qb5+ {[%clk 0:00:02]} 76. Ke1 {[%clk 0:00:05]}  Qb4 {[%clk 0:00:02]} 77. Ke2 {[%clk 0:00:06]}  Qc4+ {[%clk 0:00:02]} 78. Ke1 {[%clk 0:00:06]}  Qc5 {[%clk 0:00:01]} 79. Ke2 {[%clk 0:00:06]}  Kf5 {[%clk 0:00:01]} 80. Ke1 {[%clk 0:00:07]}  Qc4 {[%clk 0:00:01]} 81. Kf2 {[%clk 0:00:07]}  Qc5+ {[%clk 0:00:01]} 82. Ke1 {[%clk 0:00:08]}  Qb4 {[%clk 0:00:01]} 83. Ke2 {[%clk 0:00:08]}  Qc4+ {[%clk 0:00:01]} 84. Ke1 {[%clk 0:00:09]}  Qc5 {[%clk 0:00:02]} 85. Ke2 {[%clk 0:00:09]}  Qb4 {[%clk 0:00:03]} 86. Ke1 {[%clk 0:00:09]}  Ke4 {[%clk 0:00:03]} 87. Ke2 {[%clk 0:00:09]}  Qc4+ {[%clk 0:00:04]} 88. Ke1 {[%clk 0:00:10]}  Qc5 {[%clk 0:00:05]} 89. Ke2 {[%clk 0:00:10]}  Qe3+ {[%clk 0:00:04]} 90. Kf1 {[%clk 0:00:10]}  Qd3+ {[%clk 0:00:05]} 91. Ke1 {[%clk 0:00:10]}  Qc4 {[%clk 0:00:05]} 92. Kf2 {[%clk 0:00:10]}  Qc5+ {[%clk 0:00:05]} 93. Ke1 {[%clk 0:00:11]}  Ke3 {[%clk 0:00:05]} 94. Re2+ {[%clk 0:00:09]}  Kd3 {[%clk 0:00:06]} 95. Bc2+ {[%clk 0:00:09]}  Kc4 {[%clk 0:00:05]} 96. Re4+ {[%clk 0:00:09]}  Kb5 {[%clk 0:00:06]} 97. Re5 {[%clk 0:00:10]}  Kb4 {[%clk 0:00:04]} 98. Rxc5 {[%clk 0:00:09]}  Kxc5 {[%clk 0:00:05]} 99. Ke2 {[%clk 0:00:10]}  Kc4 {[%clk 0:00:06]} 100. Kf2 {[%clk 0:00:08]}  Kd5 {[%clk 0:00:05]} 101. Kg2 {[%clk 0:00:08]}  Kc4 {[%clk 0:00:06]} 102. Kh3 {[%clk 0:00:09]}  Kd5 {[%clk 0:00:05]} 103. Kg4 {[%clk 0:00:09]}  Kc4 {[%clk 0:00:05]} 104. Kxf4 {[%clk 0:00:10]}  Kb4 {[%clk 0:00:06]} 105. Ke4 {[%clk 0:00:10]}  Kc4 {[%clk 0:00:07]} 106. Ke3 {[%clk 0:00:10]}  Kb4 {[%clk 0:00:07]} 107. Kd4 {[%clk 0:00:11]}  Kb5 {[%clk 0:00:07]} 108. Kxc3 {[%clk 0:00:12]}  Ka5 {[%clk 0:00:08]} 109. Kb3 {[%clk 0:00:12]} 1-0


[Site "https://www.chess.com"]

[Event "Titled Tuesday Blitz February 01 A 2022"]
[White "Salinas Herrera, Pablo"]
[Black "Fayzullaev, Akmal"]
[WhiteFideId "3407128"]
[BlackFideId "14200554"]
[WhiteElo "2541"]
[BlackElo "2228"]
[Result "1-0"]
[Round "09"]
[TimeControl "180+1"]
[Date "2022.02.01"]
[WhiteClock "0:01:09"]
[BlackClock "0:00:03"]

1. d4 {[%clk 0:03:00]}  Nf6 {[%clk 0:01:50]} 2. Nf3 {[%clk 0:03:00]}  g6 {[%clk 0:01:50]} 3. Nbd2 {[%clk 0:03:01]}  Bg7 {[%clk 0:01:51]} 4. e4 {[%clk 0:03:01]}  d6 {[%clk 0:01:51]} 5. Bb5+ {[%clk 0:03:01]}  c6 {[%clk 0:01:51]} 6. Bd3 {[%clk 0:03:01]}  O-O {[%clk 0:01:52]} 7. O-O {[%clk 0:03:02]}  Nbd7 {[%clk 0:01:46]} 8. c3 {[%clk 0:03:01]}  e5 {[%clk 0:01:46]} 9. h3 {[%clk 0:03:02]}  Qe7 {[%clk 0:01:45]} 10. Re1 {[%clk 0:03:02]}  Re8 {[%clk 0:01:38]} 11. a4 {[%clk 0:03:02]}  a5 {[%clk 0:01:38]} 12. Nf1 {[%clk 0:03:02]}  Nf8 {[%clk 0:01:27]} 13. Ng3 {[%clk 0:03:03]}  Qc7 {[%clk 0:01:27]} 14. Be3 {[%clk 0:03:02]}  Ne6 {[%clk 0:01:27]} 15. Qd2 {[%clk 0:03:03]}  Bd7 {[%clk 0:01:18]} 16. Rad1 {[%clk 0:03:01]}  Rad8 {[%clk 0:01:17]} 17. Bh6 {[%clk 0:03:00]}  Qb6 {[%clk 0:01:01]} 18. Bxg7 {[%clk 0:02:59]}  Kxg7 {[%clk 0:01:02]} 19. dxe5 {[%clk 0:02:59]}  dxe5 {[%clk 0:01:02]} 20. Nxe5 {[%clk 0:02:52]}  Nc5 {[%clk 0:01:00]} 21. Nc4 {[%clk 0:02:23]}  Qb3 {[%clk 0:00:51]} 22. Nxa5 {[%clk 0:02:07]}  Qxa4 {[%clk 0:00:51]} 23. Ra1 {[%clk 0:02:07]}  Nb3 {[%clk 0:00:44]} 24. Rxa4 {[%clk 0:01:44]}  Nxd2 {[%clk 0:00:44]} 25. Rd1 {[%clk 0:01:45]}  b6 {[%clk 0:00:16]} 26. Rxd2 {[%clk 0:01:41]}  bxa5 {[%clk 0:00:16]} 27. Rxa5 {[%clk 0:01:40]}  Be6 {[%clk 0:00:16]} 28. Nf1 {[%clk 0:01:26]}  Bb3 {[%clk 0:00:07]} 29. f3 {[%clk 0:01:25]}  Nd7 {[%clk 0:00:06]} 30. Be2 {[%clk 0:01:22]}  Nb6 {[%clk 0:00:03]} 31. Rxd8 {[%clk 0:01:22]}  Rxd8 {[%clk 0:00:04]} 32. Kf2 {[%clk 0:01:20]}  Nc4 {[%clk 0:00:02]} 33. Bxc4 {[%clk 0:01:09]}  Bxc4 {[%clk 0:00:03]} 34. Ne3 {[%clk 0:01:09]} 1-0


[Site "https://www.chess.com"]

[Event "Titled Tuesday Blitz February 01 A 2022"]
[White "Sasikiran, Krishnan"]
[Black "Kosteniuk, Alexandra"]
[WhiteFideId "5004985"]
[BlackFideId "4128125"]
[WhiteElo "2572"]
[BlackElo "2469"]
[Result "1-0"]
[Round "09"]
[TimeControl "180+1"]
[Date "2022.02.01"]
[WhiteClock "0:01:25"]
[BlackClock "0:00:22"]

1. e4 {[%clk 0:03:00]}  c6 {[%clk 0:02:56]} 2. Nf3 {[%clk 0:02:56]}  d5 {[%clk 0:02:56]} 3. d3 {[%clk 0:02:57]}  dxe4 {[%clk 0:02:55]} 4. dxe4 {[%clk 0:02:57]}  Qxd1+ {[%clk 0:02:56]} 5. Kxd1 {[%clk 0:02:57]}  Nf6 {[%clk 0:02:52]} 6. Nfd2 {[%clk 0:02:56]}  g5 {[%clk 0:02:50]} 7. f3 {[%clk 0:02:50]}  h5 {[%clk 0:02:50]} 8. h4 {[%clk 0:02:38]}  g4 {[%clk 0:02:50]} 9. a4 {[%clk 0:02:38]}  Nbd7 {[%clk 0:02:45]} 10. Nc4 {[%clk 0:02:37]}  Nb6 {[%clk 0:02:35]} 11. Be3 {[%clk 0:02:32]}  Nxc4 {[%clk 0:02:24]} 12. Bxc4 {[%clk 0:02:33]}  b6 {[%clk 0:02:20]} 13. Nd2 {[%clk 0:02:30]}  Bg7 {[%clk 0:02:10]} 14. c3 {[%clk 0:02:25]}  Nd7 {[%clk 0:02:09]} 15. Kc2 {[%clk 0:02:22]}  Ne5 {[%clk 0:02:05]} 16. Be2 {[%clk 0:02:21]}  gxf3 {[%clk 0:01:46]} 17. gxf3 {[%clk 0:02:21]}  Ng6 {[%clk 0:01:46]} 18. f4 {[%clk 0:02:10]}  Bf6 {[%clk 0:01:42]} 19. Rag1 {[%clk 0:02:01]}  e5 {[%clk 0:01:12]} 20. f5 {[%clk 0:01:51]}  Nf4 {[%clk 0:01:06]} 21. Bc4 {[%clk 0:01:45]}  Ke7 {[%clk 0:00:57]} 22. Nf3 {[%clk 0:01:42]}  b5 {[%clk 0:00:51]} 23. Bf1 {[%clk 0:01:34]}  Bd7 {[%clk 0:00:40]} 24. Bxf4 {[%clk 0:01:33]}  exf4 {[%clk 0:00:40]} 25. e5 {[%clk 0:01:33]}  Bxf5+ {[%clk 0:00:40]} 26. Bd3 {[%clk 0:01:32]}  Bg4 {[%clk 0:00:38]} 27. exf6+ {[%clk 0:01:31]}  Kxf6 {[%clk 0:00:39]} 28. Rf1 {[%clk 0:01:30]}  bxa4 {[%clk 0:00:39]} 29. Ng5 {[%clk 0:01:28]}  Rhf8 {[%clk 0:00:32]} 30. Rxf4+ {[%clk 0:01:28]}  Kg7 {[%clk 0:00:32]} 31. Rhf1 {[%clk 0:01:26]}  f5 {[%clk 0:00:22]} 32. Ne6+ {[%clk 0:01:25]} 1-0


[Site "https://www.chess.com"]

[Event "Titled Tuesday Blitz February 01 A 2022"]
[White "Shirov, Alexei"]
[Black "Terry, Renato"]
[WhiteFideId "2209390"]
[BlackFideId "3803457"]
[WhiteElo "2645"]
[BlackElo "2577"]
[Result "0-1"]
[Round "09"]
[TimeControl "180+1"]
[Date "2022.02.01"]
[WhiteClock "0:00:01"]
[BlackClock "0:00:04"]

1. e4 {[%clk 0:03:00]}  e6 {[%clk 0:02:54]} 2. d4 {[%clk 0:03:00]}  d5 {[%clk 0:02:54]} 3. e5 {[%clk 0:03:00]}  c5 {[%clk 0:02:54]} 4. c3 {[%clk 0:03:01]}  Qb6 {[%clk 0:02:54]} 5. Nf3 {[%clk 0:03:01]}  Bd7 {[%clk 0:02:54]} 6. a3 {[%clk 0:03:00]}  Bb5 {[%clk 0:02:54]} 7. b4 {[%clk 0:02:58]}  cxd4 {[%clk 0:02:54]} 8. Bxb5+ {[%clk 0:02:58]}  Qxb5 {[%clk 0:02:55]} 9. cxd4 {[%clk 0:02:57]}  Nd7 {[%clk 0:02:54]} 10. Nc3 {[%clk 0:02:56]}  Qc6 {[%clk 0:02:54]} 11. Na4 {[%clk 0:02:54]}  Nb6 {[%clk 0:02:54]} 12. Nxb6 {[%clk 0:02:52]}  axb6 {[%clk 0:02:55]} 13. Bd2 {[%clk 0:02:41]}  Ne7 {[%clk 0:02:52]} 14. O-O {[%clk 0:02:36]}  b5 {[%clk 0:02:35]} 15. Qb1 {[%clk 0:02:31]}  Nc8 {[%clk 0:02:33]} 16. Rc1 {[%clk 0:02:29]}  Qd7 {[%clk 0:02:33]} 17. a4 {[%clk 0:01:48]}  bxa4 {[%clk 0:02:31]} 18. b5 {[%clk 0:01:48]}  Nb6 {[%clk 0:02:29]} 19. Bb4 {[%clk 0:01:47]}  Be7 {[%clk 0:02:14]} 20. Nd2 {[%clk 0:01:37]}  O-O {[%clk 0:01:58]} 21. Bc5 {[%clk 0:01:35]}  Ra5 {[%clk 0:01:31]} 22. Bxe7 {[%clk 0:00:55]}  Qxe7 {[%clk 0:01:29]} 23. Rc5 {[%clk 0:00:52]}  Rfa8 {[%clk 0:01:24]} 24. Ra3 {[%clk 0:00:49]}  Nd7 {[%clk 0:01:06]} 25. Rcc3 {[%clk 0:00:48]}  Qd8 {[%clk 0:01:01]} 26. Qb4 {[%clk 0:00:45]}  Qf8 {[%clk 0:00:40]} 27. Qb1 {[%clk 0:00:42]}  Qd8 {[%clk 0:00:27]} 28. Qb4 {[%clk 0:00:42]}  Nf8 {[%clk 0:00:27]} 29. b6 {[%clk 0:00:29]}  R5a6 {[%clk 0:00:28]} 30. Rc7 {[%clk 0:00:28]}  Nd7 {[%clk 0:00:27]} 31. Rxb7 {[%clk 0:00:20]}  Rxb6 {[%clk 0:00:25]} 32. Rxb6 {[%clk 0:00:20]}  Nxb6 {[%clk 0:00:17]} 33. h3 {[%clk 0:00:18]}  h6 {[%clk 0:00:16]} 34. Kh2 {[%clk 0:00:17]}  Qc7 {[%clk 0:00:16]} 35. Rg3 {[%clk 0:00:16]}  Qd8 {[%clk 0:00:08]} 36. Nb1 {[%clk 0:00:14]}  Nc4 {[%clk 0:00:07]} 37. Na3 {[%clk 0:00:14]}  Qf8 {[%clk 0:00:05]} 38. Qb7 {[%clk 0:00:11]}  Nxa3 {[%clk 0:00:04]} 39. Rxa3 {[%clk 0:00:11]}  Rb8 {[%clk 0:00:03]} 40. Qc7 {[%clk 0:00:10]}  Qxa3 {[%clk 0:00:02]} 41. Qxb8+ {[%clk 0:00:10]}  Qf8 {[%clk 0:00:03]} 42. Qa7 {[%clk 0:00:09]}  a3 {[%clk 0:00:04]} 43. Qa5 {[%clk 0:00:08]}  Qe7 {[%clk 0:00:03]} 44. f4 {[%clk 0:00:08]}  h5 {[%clk 0:00:03]} 45. Kg3 {[%clk 0:00:08]}  g6 {[%clk 0:00:02]} 46. Kf3 {[%clk 0:00:07]}  h4 {[%clk 0:00:02]} 47. Kg4 {[%clk 0:00:06]}  Kh7 {[%clk 0:00:03]} 48. Qa6 {[%clk 0:00:05]}  Kh6 {[%clk 0:00:02]} 49. Qa8 {[%clk 0:00:05]}  Kg7 {[%clk 0:00:03]} 50. Qa5 {[%clk 0:00:04]}  f5+ {[%clk 0:00:03]} 51. Kf3 {[%clk 0:00:04]}  Kh7 {[%clk 0:00:03]} 52. Qa6 {[%clk 0:00:04]}  Kh6 {[%clk 0:00:03]} 53. Qa8 {[%clk 0:00:04]}  Kg7 {[%clk 0:00:04]} 54. Qa6 {[%clk 0:00:03]}  Kf7 {[%clk 0:00:03]} 55. Qa5 {[%clk 0:00:03]}  g5 {[%clk 0:00:04]} 56. fxg5 {[%clk 0:00:03]}  Qxg5 {[%clk 0:00:05]} 57. Qc7+ {[%clk 0:00:02]}  Kg6 {[%clk 0:00:05]} 58. Qd7 {[%clk 0:00:01]}  Qg3+ {[%clk 0:00:05]} 59. Ke2 {[%clk 0:00:01]}  Qxg2+ {[%clk 0:00:06]} 60. Ke1 {[%clk 0:00:01]}  Qe4+ {[%clk 0:00:06]} 61. Kf1 {[%clk 0:00:02]}  a2 {[%clk 0:00:04]} 62. Qxe6+ {[%clk 0:00:01]}  Kg5 {[%clk 0:00:04]} 63. Qf6+ {[%clk 0:00:01]}  Kf4 {[%clk 0:00:04]} 0-1


[Site "https://www.chess.com"]

[Event "Titled Tuesday Blitz February 01 A 2022"]
[White "Urazayev, Arystanbek"]
[Black "Madaminov, Mukhiddin"]
[WhiteFideId "13709810"]
[BlackFideId "14210703"]
[WhiteElo "2321"]
[BlackElo "1916"]
[Result "1-0"]
[Round "09"]
[TimeControl "180+1"]
[Date "2022.02.01"]
[WhiteClock "0:00:25"]
[BlackClock "0:00:05"]

1. e4 {[%clk 0:03:00]}  e6 {[%clk 0:02:58]} 2. d4 {[%clk 0:03:01]}  d5 {[%clk 0:02:59]} 3. e5 {[%clk 0:03:01]}  c5 {[%clk 0:02:54]} 4. c3 {[%clk 0:03:01]}  Nc6 {[%clk 0:02:55]} 5. Nf3 {[%clk 0:03:02]}  Qb6 {[%clk 0:02:55]} 6. Bd3 {[%clk 0:03:02]}  cxd4 {[%clk 0:02:53]} 7. O-O {[%clk 0:03:03]}  Bd7 {[%clk 0:02:53]} 8. Re1 {[%clk 0:03:03]}  Nge7 {[%clk 0:02:50]} 9. a3 {[%clk 0:03:03]}  Rc8 {[%clk 0:02:37]} 10. h4 {[%clk 0:03:02]}  h5 {[%clk 0:02:24]} 11. Ng5 {[%clk 0:02:49]}  Nf5 {[%clk 0:02:14]} 12. Bxf5 {[%clk 0:02:38]}  exf5 {[%clk 0:02:15]} 13. e6 {[%clk 0:02:36]}  Bxe6 {[%clk 0:02:15]} 14. Qf3 {[%clk 0:02:13]}  Kd7 {[%clk 0:02:04]} 15. Nxf7 {[%clk 0:02:04]}  Be7 {[%clk 0:01:25]} 16. Nxh8 {[%clk 0:01:57]}  Rxh8 {[%clk 0:01:26]} 17. b4 {[%clk 0:01:39]}  Bxh4 {[%clk 0:01:15]} 18. Bb2 {[%clk 0:01:35]}  Bf6 {[%clk 0:01:11]} 19. Nd2 {[%clk 0:01:25]}  Ne5 {[%clk 0:01:09]} 20. Qe2 {[%clk 0:01:05]}  d3 {[%clk 0:01:09]} 21. Qf1 {[%clk 0:01:06]}  Nc4 {[%clk 0:01:09]} 22. Nb3 {[%clk 0:00:48]}  Nxb2 {[%clk 0:00:19]} 23. Nc5+ {[%clk 0:00:47]}  Qxc5 {[%clk 0:00:19]} 24. bxc5 {[%clk 0:00:46]}  Bxc3 {[%clk 0:00:19]} 25. Reb1 {[%clk 0:00:27]}  d4 {[%clk 0:00:16]} 26. Rxb2 {[%clk 0:00:25]}  Bxb2 {[%clk 0:00:17]} 27. Rb1 {[%clk 0:00:26]}  Bc3 {[%clk 0:00:06]} 28. Qxd3 {[%clk 0:00:26]}  Kc7 {[%clk 0:00:06]} 29. Qg3+ {[%clk 0:00:25]}  Kc6 {[%clk 0:00:05]} 30. Qd6# {[%clk 0:00:25]} 1-0


[Site "https://www.chess.com"]